[Event "Late-Titled-Tuesday-Blitz-August-29-2023"]
[Site "Chess.com"]
[Date "2023.08.29"]
[Round "7"]
[White "rochaaaaaaaaaa"]
[Black "Alexei_Gubajdullin"]
[Result "0-1"]
[WhiteElo "2247"]
[BlackElo "2612"]
[TimeControl "180+1"]
[EndTime "15:16:24 PDT"]
[Termination "Alexei_Gubajdullin won by checkmate"]

1. e4 {[%clk 0:03:00.9]} 1... g6 {[%clk 0:02:53]} 2. d4 {[%clk 0:03:00.7]} 2...
d6 {[%clk 0:02:53.3]} 3. Nc3 {[%clk 0:03:00.2]} 3... a6 {[%clk 0:02:53.8]} 4.
Nf3 {[%clk 0:02:57.9]} 4... Bg7 {[%clk 0:02:52.9]} 5. Be3 {[%clk 0:02:57.5]}
5... b5 {[%clk 0:02:49.5]} 6. Bd3 {[%clk 0:02:51.9]} 6... Bb7 {[%clk 0:02:49.3]}
7. h4 {[%clk 0:02:49.9]} 7... h6 {[%clk 0:02:48]} 8. e5 {[%clk 0:02:48.6]} 8...
e6 {[%clk 0:02:39.9]} 9. a4 {[%clk 0:02:41.8]} 9... b4 {[%clk 0:02:39.2]} 10.
Ne4 {[%clk 0:02:41.3]} 10... Ne7 {[%clk 0:02:36.9]} 11. exd6 {[%clk 0:02:20.5]}
11... cxd6 {[%clk 0:02:36.2]} 12. Bf4 {[%clk 0:02:20.8]} 12... Nf5 {[%clk
0:02:19.3]} 13. g4 {[%clk 0:02:15.6]} 13... Bxe4 {[%clk 0:02:17.8]} 14. Bxe4
{[%clk 0:02:14.8]} 14... d5 {[%clk 0:02:17.8]} 15. gxf5 {[%clk 0:02:06]} 15...
dxe4 {[%clk 0:02:17.1]} 16. fxg6 {[%clk 0:01:57.4]} 16... exf3 {[%clk
0:02:15.3]} 17. gxf7+ {[%clk 0:01:57.5]} 17... Kf8 {[%clk 0:02:08.9]} 18. Qxf3
{[%clk 0:01:56.4]} 18... Ra7 {[%clk 0:02:08.6]} 19. O-O-O {[%clk 0:01:55.4]}
19... Rxf7 {[%clk 0:02:07.2]} 20. Qg3 {[%clk 0:01:55.1]} 20... Nc6 {[%clk
0:02:01.8]} 21. Rhg1 {[%clk 0:01:51.7]} 21... Nxd4 {[%clk 0:01:58.8]} 22. Bd6+
{[%clk 0:01:51.4]} 22... Ke8 {[%clk 0:01:57.3]} 23. Rge1 {[%clk 0:01:22.2]}
23... Qc8 {[%clk 0:01:36]} 24. Qg6 {[%clk 0:01:21.9]} 24... Qc4 {[%clk
0:00:56.4]} 25. Rxd4 {[%clk 0:01:06.7]} 25... Qxd4 {[%clk 0:00:55.6]} 26. Qxe6+
{[%clk 0:00:52.8]} 26... Kd8 {[%clk 0:00:55.1]} 27. Be7+ {[%clk 0:00:15.4]}
27... Rxe7 {[%clk 0:00:51.9]} 28. Qxe7+ {[%clk 0:00:15.8]} 28... Kc8 {[%clk
0:00:52]} 29. Qe6+ {[%clk 0:00:16.2]} 29... Kb8 {[%clk 0:00:50.9]} 30. Re4
{[%clk 0:00:03.2]} 30... Qxb2+ {[%clk 0:00:48.1]} 31. Kd1 {[%clk 0:00:03.4]}
31... Rd8+ {[%clk 0:00:46.4]} 32. Ke2 {[%clk 0:00:03.8]} 32... Bd4 {[%clk
0:00:25.6]} 33. Kf3 {[%clk 0:00:02.2]} 33... Qc3+ {[%clk 0:00:19.8]} 34. Kg2
{[%clk 0:00:01.9]} 34... Qc5 {[%clk 0:00:18.8]} 35. f4 {[%clk 0:00:01.3]} 35...
Qxc2+ {[%clk 0:00:17.8]} 36. Kh3 {[%clk 0:00:01.2]} 36... Qd3+ {[%clk
0:00:16.5]} 37. Kg4 {[%clk 0:00:01.9]} 37... Qd1+ {[%clk 0:00:15.6]} 38. Kf5
{[%clk 0:00:01.9]} 38... Qh5# {[%clk 0:00:15]} 0-1

[Event "Late-Titled-Tuesday-Blitz-August-29-2023"]
[Site "Chess.com"]
[Date "2023.08.29"]
[Round "7"]
[White "The_Straightforward_Rook"]
[Black "Thjop"]
[Result "1-0"]
[WhiteElo "2509"]
[BlackElo "2675"]
[TimeControl "180+1"]
[EndTime "15:16:29 PDT"]
[Termination "The_Straightforward_Rook won by resignation"]

1. d4 {[%clk 0:03:00.9]} 1... d5 {[%clk 0:03:00.2]} 2. Nf3 {[%clk 0:03:00.8]}
2... Nf6 {[%clk 0:03:00.2]} 3. c4 {[%clk 0:03:01.4]} 3... c6 {[%clk 0:03:00.7]}
4. cxd5 {[%clk 0:03:01.8]} 4... cxd5 {[%clk 0:03:01.6]} 5. Nc3 {[%clk
0:03:02.2]} 5... Nc6 {[%clk 0:03:02.3]} 6. Bf4 {[%clk 0:03:02.6]} 6... Bf5
{[%clk 0:03:02.9]} 7. Qb3 {[%clk 0:03:02.9]} 7... Na5 {[%clk 0:03:02.9]} 8. Qa4+
{[%clk 0:03:03.1]} 8... Bd7 {[%clk 0:03:03.2]} 9. Qc2 {[%clk 0:03:03.7]} 9...
Nc4 {[%clk 0:03:02.8]} 10. e3 {[%clk 0:03:01.1]} 10... Rc8 {[%clk 0:03:02.7]}
11. Bd3 {[%clk 0:02:59.5]} 11... e6 {[%clk 0:03:01.9]} 12. O-O {[%clk
0:02:59.2]} 12... Bd6 {[%clk 0:03:01.8]} 13. Bg5 {[%clk 0:02:56.9]} 13... h6
{[%clk 0:03:00.9]} 14. Bh4 {[%clk 0:02:56.6]} 14... g5 {[%clk 0:02:50.4]} 15.
Bg3 {[%clk 0:02:56.6]} 15... Qc7 {[%clk 0:02:44.9]} 16. Rfc1 {[%clk 0:02:53.4]}
16... Bxg3 {[%clk 0:02:34.4]} 17. hxg3 {[%clk 0:02:53.4]} 17... h5 {[%clk
0:02:29.1]} 18. Bxc4 {[%clk 0:02:19.9]} 18... dxc4 {[%clk 0:02:26.3]} 19. Nxg5
{[%clk 0:02:15.9]} 19... h4 {[%clk 0:02:25.6]} 20. Nce4 {[%clk 0:02:14.6]} 20...
Nxe4 {[%clk 0:02:18.9]} 21. Nxe4 {[%clk 0:01:58.8]} 21... hxg3 {[%clk
0:02:10.4]} 22. Qxc4 {[%clk 0:01:27.3]} 22... gxf2+ {[%clk 0:02:09]} 23. Kxf2
{[%clk 0:01:27.1]} 23... Qxc4 {[%clk 0:02:05.2]} 24. Rxc4 {[%clk 0:01:18.5]}
24... Rxc4 {[%clk 0:02:02.1]} 25. Nd6+ {[%clk 0:01:18.3]} 25... Ke7 {[%clk
0:02:02.6]} 26. Nxc4 {[%clk 0:01:19.2]} 26... Bc6 {[%clk 0:01:59.1]} 27. Ne5
{[%clk 0:01:15.7]} 27... Be4 {[%clk 0:01:55.6]} 28. Rc1 {[%clk 0:01:15.6]} 28...
Rg8 {[%clk 0:01:25.4]} 29. Nf3 {[%clk 0:01:04.8]} 29... Kd6 {[%clk 0:01:17.5]}
30. b4 {[%clk 0:01:02.9]} 30... f6 {[%clk 0:01:07.5]} 31. a3 {[%clk 0:01:00.1]}
31... a5 {[%clk 0:01:06.9]} 32. bxa5 {[%clk 0:00:58.9]} 32... Ra8 {[%clk
0:01:04.1]} 33. Rc5 {[%clk 0:00:58.9]} 33... Ra6 {[%clk 0:01:04.3]} 34. Nd2
{[%clk 0:00:57.8]} 34... Bc6 {[%clk 0:01:02.9]} 35. Nc4+ {[%clk 0:00:53.9]}
35... Ke7 {[%clk 0:01:00.2]} 36. Nb6 {[%clk 0:00:54]} 36... Kd6 {[%clk
0:00:56.5]} 37. g4 {[%clk 0:00:49.5]} 37... e5 {[%clk 0:00:55.9]} 38. Kg3 {[%clk
0:00:48.5]} 38... exd4 {[%clk 0:00:50.6]} 39. exd4 {[%clk 0:00:49.4]} 39... Be4
{[%clk 0:00:39.7]} 40. Kf4 {[%clk 0:00:47.2]} 40... Bb1 {[%clk 0:00:39.4]} 41.
Kg3 {[%clk 0:00:36.6]} 41... Bd3 {[%clk 0:00:33.6]} 42. Kh4 {[%clk 0:00:36.5]}
42... Ke6 {[%clk 0:00:32.2]} 43. Kh5 {[%clk 0:00:35.2]} 43... Kf7 {[%clk
0:00:32.3]} 44. Kh4 {[%clk 0:00:24.1]} 44... Bb1 {[%clk 0:00:31.6]} 45. Kg3
{[%clk 0:00:23.6]} 45... Ke6 {[%clk 0:00:32.1]} 46. Kf4 {[%clk 0:00:24.1]} 46...
Kd6 {[%clk 0:00:31.3]} 47. Rc8 {[%clk 0:00:20.5]} 47... Ke6 {[%clk 0:00:25.4]}
48. Re8+ {[%clk 0:00:19.8]} 48... Kf7 {[%clk 0:00:24.3]} 49. Rb8 {[%clk
0:00:19]} 49... Rxa5 {[%clk 0:00:23.2]} 50. Rxb7+ {[%clk 0:00:19.6]} 50... Ke6
{[%clk 0:00:23.2]} 51. d5+ {[%clk 0:00:19]} 51... Kd6 {[%clk 0:00:22]} 52. Nc4+
{[%clk 0:00:19.4]} 1-0

[Event "Late-Titled-Tuesday-Blitz-August-29-2023"]
[Site "Chess.com"]
[Date "2023.08.29"]
[Round "7"]
[White "Eloist"]
[Black "giomar27"]
[Result "1-0"]
[WhiteElo "2451"]
[BlackElo "2263"]
[TimeControl "180+1"]
[EndTime "15:16:30 PDT"]
[Termination "Eloist won on time"]

1. e4 {[%clk 0:03:00.9]} 1... e5 {[%clk 0:02:04.3]} 2. Nf3 {[%clk 0:02:59.4]}
2... d5 {[%clk 0:02:04.9]} 3. exd5 {[%clk 0:02:55.6]} 3... e4 {[%clk 0:02:05.8]}
4. Qe2 {[%clk 0:02:49.9]} 4... Nf6 {[%clk 0:02:06]} 5. d3 {[%clk 0:02:47]} 5...
Bb4+ {[%clk 0:02:06.5]} 6. c3 {[%clk 0:02:44.5]} 6... O-O {[%clk 0:02:07.4]} 7.
cxb4 {[%clk 0:02:42.6]} 7... exf3 {[%clk 0:02:06.8]} 8. Qxf3 {[%clk 0:02:38.7]}
8... Re8+ {[%clk 0:02:07.3]} 9. Be3 {[%clk 0:02:37.4]} 9... Nxd5 {[%clk
0:02:01.2]} 10. Nc3 {[%clk 0:02:32.9]} 10... Nxb4 {[%clk 0:01:54.2]} 11. O-O-O
{[%clk 0:02:32.4]} 11... N8c6 {[%clk 0:01:52.4]} 12. a3 {[%clk 0:02:30.2]} 12...
Na6 {[%clk 0:01:45.6]} 13. d4 {[%clk 0:02:29]} 13... Ne7 {[%clk 0:01:36.5]} 14.
Bc4 {[%clk 0:02:24.8]} 14... Be6 {[%clk 0:01:35.6]} 15. d5 {[%clk 0:02:22.5]}
15... Bf5 {[%clk 0:01:26.6]} 16. d6 {[%clk 0:02:21.9]} 16... cxd6 {[%clk
0:01:24.2]} 17. Qxb7 {[%clk 0:02:05.8]} 17... Nc7 {[%clk 0:01:10.6]} 18. Bxa7
{[%clk 0:01:57.1]} 18... Ne6 {[%clk 0:01:00.2]} 19. Rhe1 {[%clk 0:01:40.8]}
19... Qc8 {[%clk 0:00:50.4]} 20. Qxc8 {[%clk 0:01:27]} 20... Rexc8 {[%clk
0:00:51.3]} 21. Bxe6 {[%clk 0:01:16.3]} 21... fxe6 {[%clk 0:00:42.4]} 22. Bd4
{[%clk 0:01:07.8]} 22... d5 {[%clk 0:00:07]} 23. f3 {[%clk 0:00:43.7]} 23... h5
{[%clk 0:00:06.9]} 24. h3 {[%clk 0:00:42.5]} 24... h4 {[%clk 0:00:06.5]} 25. Bf2
{[%clk 0:00:41.8]} 25... g5 {[%clk 0:00:05.4]} 26. Be3 {[%clk 0:00:41.3]} 26...
Rc4 {[%clk 0:00:03.2]} 27. Bxg5 {[%clk 0:00:38.9]} 27... Ng6 {[%clk 0:00:03.4]}
28. Kd2 {[%clk 0:00:28.5]} 28... Rb8 {[%clk 0:00:03.2]} 29. b4 {[%clk
0:00:23.9]} 29... d4 {[%clk 0:00:02]} 30. Ne4 {[%clk 0:00:21.3]} 30... Rbc8
{[%clk 0:00:01.8]} 31. Rc1 {[%clk 0:00:18.6]} 31... Ne5 {[%clk 0:00:02.5]} 32.
Nd6 {[%clk 0:00:14.7]} 32... Rxc1 {[%clk 0:00:02.1]} 33. Rxc1 {[%clk 0:00:14.8]}
33... Rxc1 {[%clk 0:00:02.3]} 34. Kxc1 {[%clk 0:00:15.7]} 34... Nd3+ {[%clk
0:00:02.9]} 35. Kd2 {[%clk 0:00:15.2]} 35... Nb2 {[%clk 0:00:01.2]} 36. Nxf5
{[%clk 0:00:12.7]} 36... exf5 {[%clk 0:00:01.1]} 37. Bxh4 {[%clk 0:00:12.2]}
37... Nc4+ {[%clk 0:00:01.5]} 38. Kd3 {[%clk 0:00:11.3]} 38... Nxa3 {[%clk
0:00:02.4]} 39. Kxd4 {[%clk 0:00:11.6]} 39... Nc2+ {[%clk 0:00:02.9]} 40. Kc5
{[%clk 0:00:11.4]} 1-0

[Event "Late-Titled-Tuesday-Blitz-August-29-2023"]
[Site "Chess.com"]
[Date "2023.08.29"]
[Round "7"]
[White "MikeSailer"]
[Black "JerMorGurgeh"]
[Result "1-0"]
[WhiteElo "2193"]
[BlackElo "2395"]
[TimeControl "180+1"]
[EndTime "15:16:35 PDT"]
[Termination "MikeSailer won on time"]

1. d4 {[%clk 0:03:00]} 1... e6 {[%clk 0:02:59]} 2. Bf4 {[%clk 0:02:39.9]} 2...
c5 {[%clk 0:02:54.6]} 3. e3 {[%clk 0:02:38.2]} 3... Nf6 {[%clk 0:02:50]} 4. Nc3
{[%clk 0:02:36.4]} 4... a6 {[%clk 0:02:46.5]} 5. Nf3 {[%clk 0:02:30]} 5... d5
{[%clk 0:02:42.2]} 6. Be2 {[%clk 0:02:17.5]} 6... Nc6 {[%clk 0:02:41]} 7. O-O
{[%clk 0:02:16.5]} 7... Bd6 {[%clk 0:02:38.4]} 8. Ne5 {[%clk 0:02:15.3]} 8...
Qc7 {[%clk 0:02:31.1]} 9. Nxc6 {[%clk 0:02:09.2]} 9... bxc6 {[%clk 0:02:29.6]}
10. Bxd6 {[%clk 0:02:08.9]} 10... Qxd6 {[%clk 0:02:29]} 11. dxc5 {[%clk
0:02:05.7]} 11... Qxc5 {[%clk 0:02:28.2]} 12. Na4 {[%clk 0:02:06.1]} 12... Qa7
{[%clk 0:02:18.7]} 13. c4 {[%clk 0:02:03.3]} 13... O-O {[%clk 0:02:13.7]} 14.
Rc1 {[%clk 0:01:59.1]} 14... Rb8 {[%clk 0:02:07.5]} 15. b3 {[%clk 0:01:57.4]}
15... Re8 {[%clk 0:01:40.9]} 16. Qc2 {[%clk 0:01:42.6]} 16... e5 {[%clk
0:01:29.1]} 17. Rfd1 {[%clk 0:01:36.2]} 17... h6 {[%clk 0:01:24.2]} 18. cxd5
{[%clk 0:01:28.5]} 18... cxd5 {[%clk 0:01:22.6]} 19. Qc7 {[%clk 0:01:28]} 19...
Rb7 {[%clk 0:01:16.5]} 20. Qxc8 {[%clk 0:00:52.7]} 20... Rxc8 {[%clk 0:01:14.2]}
21. Rxc8+ {[%clk 0:00:53.6]} 21... Kh7 {[%clk 0:01:14.3]} 22. Rdc1 {[%clk
0:00:49.2]} 22... g6 {[%clk 0:01:08.4]} 23. h3 {[%clk 0:00:47.6]} 23... Rd7
{[%clk 0:01:03.2]} 24. R1c6 {[%clk 0:00:44.5]} 24... Ne4 {[%clk 0:00:56.7]} 25.
Rxa6 {[%clk 0:00:37.5]} 25... Qb7 {[%clk 0:00:51.9]} 26. Raa8 {[%clk 0:00:35]}
26... Qb4 {[%clk 0:00:45]} 27. Rc1 {[%clk 0:00:29.5]} 27... Qd2 {[%clk
0:00:41.4]} 28. Rcc8 {[%clk 0:00:10.1]} 28... Qxe2 {[%clk 0:00:34.6]} 29. Nb6
{[%clk 0:00:10.2]} 29... Qxf2+ {[%clk 0:00:32.8]} 30. Kh1 {[%clk 0:00:11.1]}
30... Qe1+ {[%clk 0:00:30.9]} 31. Kh2 {[%clk 0:00:10.2]} 31... Qg3+ {[%clk
0:00:30.2]} 32. Kh1 {[%clk 0:00:10.4]} 32... Nf2+ {[%clk 0:00:28.5]} 33. Kg1
{[%clk 0:00:10.6]} 33... Rb7 {[%clk 0:00:20.7]} 34. Nxd5 {[%clk 0:00:09]} 34...
h5 {[%clk 0:00:13.1]} 35. Rh8+ {[%clk 0:00:08.3]} 1-0

[Event "Late-Titled-Tuesday-Blitz-August-29-2023"]
[Site "Chess.com"]
[Date "2023.08.29"]
[Round "7"]
[White "enriquetejedor"]
[Black "dretch"]
[Result "1-0"]
[WhiteElo "2743"]
[BlackElo "2894"]
[TimeControl "180+1"]
[EndTime "15:16:36 PDT"]
[Termination "enriquetejedor won on time"]

1. d4 {[%clk 0:02:59.5]} 1... d5 {[%clk 0:02:55.8]} 2. c4 {[%clk 0:02:58.1]}
2... c6 {[%clk 0:02:56]} 3. Nf3 {[%clk 0:02:58.8]} 3... Nf6 {[%clk 0:02:56]} 4.
Nc3 {[%clk 0:02:57.3]} 4... dxc4 {[%clk 0:02:56.2]} 5. a4 {[%clk 0:02:53.5]}
5... Bf5 {[%clk 0:02:55.6]} 6. Ne5 {[%clk 0:02:52.9]} 6... Nbd7 {[%clk
0:02:55.6]} 7. Nxc4 {[%clk 0:02:51.7]} 7... Nb6 {[%clk 0:02:55.8]} 8. Ne5 {[%clk
0:02:49.4]} 8... a5 {[%clk 0:02:55.4]} 9. f3 {[%clk 0:02:46.1]} 9... Nfd7 {[%clk
0:02:53.9]} 10. Nxd7 {[%clk 0:02:26.8]} 10... Nxd7 {[%clk 0:02:53.5]} 11. e4
{[%clk 0:02:26.6]} 11... Bg6 {[%clk 0:02:53.5]} 12. Be3 {[%clk 0:02:25.8]} 12...
Qb6 {[%clk 0:02:50.4]} 13. Qd2 {[%clk 0:02:25]} 13... e6 {[%clk 0:02:48.1]} 14.
Be2 {[%clk 0:02:04.4]} 14... Bb4 {[%clk 0:02:46.3]} 15. O-O {[%clk 0:02:03.3]}
15... O-O {[%clk 0:02:46.1]} 16. Rfd1 {[%clk 0:01:59.6]} 16... Rfd8 {[%clk
0:02:44.8]} 17. Bf1 {[%clk 0:01:57.1]} 17... f5 {[%clk 0:02:33.9]} 18. exf5
{[%clk 0:01:43.3]} 18... exf5 {[%clk 0:02:32.5]} 19. d5 {[%clk 0:01:43]} 19...
Bc5 {[%clk 0:02:15.7]} 20. Bxc5 {[%clk 0:01:41.6]} 20... Qxc5+ {[%clk
0:02:15.8]} 21. Qf2 {[%clk 0:01:38.9]} 21... Bf7 {[%clk 0:02:01.9]} 22. dxc6
{[%clk 0:01:29.3]} 22... bxc6 {[%clk 0:01:47.1]} 23. Rd4 {[%clk 0:01:28.6]}
23... Qe7 {[%clk 0:01:27.8]} 24. Rad1 {[%clk 0:01:28.3]} 24... Nf6 {[%clk
0:01:15.6]} 25. Qd2 {[%clk 0:01:02.3]} 25... Rdb8 {[%clk 0:01:08.7]} 26. Re1
{[%clk 0:00:59.8]} 26... Qc5 {[%clk 0:01:06.2]} 27. Qf2 {[%clk 0:01:00]} 27...
Qb6 {[%clk 0:00:41.3]} 28. Rd2 {[%clk 0:00:59.2]} 28... Kf8 {[%clk 0:00:34.6]}
29. Ne2 {[%clk 0:00:46.8]} 29... Qxf2+ {[%clk 0:00:31.4]} 30. Kxf2 {[%clk
0:00:47.7]} 30... Rb4 {[%clk 0:00:10.7]} 31. Nd4 {[%clk 0:00:47.4]} 31... Rxa4
{[%clk 0:00:10.1]} 32. Nxc6 {[%clk 0:00:43.1]} 32... g6 {[%clk 0:00:08.9]} 33.
Bb5 {[%clk 0:00:40.7]} 33... Ra2 {[%clk 0:00:09]} 34. Nd8 {[%clk 0:00:39.1]}
34... Bg8 {[%clk 0:00:06.3]} 35. Ne6+ {[%clk 0:00:35.2]} 35... Bxe6 {[%clk
0:00:06.6]} 36. Rxe6 {[%clk 0:00:35.9]} 36... Ng8 {[%clk 0:00:07]} 37. Rb6
{[%clk 0:00:35.8]} 37... Rc8 {[%clk 0:00:05.8]} 38. Rb7 {[%clk 0:00:35.6]} 38...
Nf6 {[%clk 0:00:04.8]} 39. Kg3 {[%clk 0:00:32]} 39... Nh5+ {[%clk 0:00:04]} 40.
Kh4 {[%clk 0:00:31.4]} 40... Kg8 {[%clk 0:00:04.5]} 41. g4 {[%clk 0:00:28.1]}
41... fxg4 {[%clk 0:00:03.9]} 42. fxg4 {[%clk 0:00:29]} 42... Nf6 {[%clk
0:00:02.3]} 43. g5 {[%clk 0:00:19.2]} 1-0

[Event "Late-Titled-Tuesday-Blitz-August-29-2023"]
[Site "Chess.com"]
[Date "2023.08.29"]
[Round "7"]
[White "GMKrikor"]
[Black "adiosabu"]
[Result "1-0"]
[WhiteElo "2875"]
[BlackElo "2609"]
[TimeControl "180+1"]
[EndTime "15:16:36 PDT"]
[Termination "GMKrikor won on time"]

1. Nf3 {[%clk 0:03:00.9]} 1... d6 {[%clk 0:02:55.1]} 2. d4 {[%clk 0:03:00.4]}
2... Nd7 {[%clk 0:02:54.6]} 3. c4 {[%clk 0:02:52.4]} 3... e5 {[%clk 0:02:54.9]}
4. e4 {[%clk 0:02:52.7]} 4... Ngf6 {[%clk 0:02:54.8]} 5. Nc3 {[%clk 0:02:53]}
5... Be7 {[%clk 0:02:54.9]} 6. Be2 {[%clk 0:02:52.4]} 6... O-O {[%clk 0:02:55]}
7. O-O {[%clk 0:02:52.5]} 7... c6 {[%clk 0:02:55.6]} 8. Be3 {[%clk 0:02:50.2]}
8... a6 {[%clk 0:02:55.7]} 9. a4 {[%clk 0:02:48.6]} 9... a5 {[%clk 0:02:55.5]}
10. h3 {[%clk 0:02:25.5]} 10... exd4 {[%clk 0:02:51.4]} 11. Nxd4 {[%clk
0:02:18.7]} 11... Nc5 {[%clk 0:02:50.3]} 12. Qc2 {[%clk 0:02:18.8]} 12... Re8
{[%clk 0:02:49.7]} 13. f4 {[%clk 0:02:11.1]} 13... Bf8 {[%clk 0:02:42.3]} 14.
Bf3 {[%clk 0:02:11.6]} 14... g6 {[%clk 0:02:18.6]} 15. Rad1 {[%clk 0:02:10.7]}
15... Qb6 {[%clk 0:02:17.7]} 16. Rfe1 {[%clk 0:02:07.2]} 16... Qb4 {[%clk
0:02:13.3]} 17. b3 {[%clk 0:02:06.4]} 17... Bg7 {[%clk 0:02:03.4]} 18. Kh1
{[%clk 0:02:00.1]} 18... h5 {[%clk 0:02:03.2]} 19. Bf2 {[%clk 0:01:48.5]} 19...
Nfd7 {[%clk 0:01:51]} 20. Rb1 {[%clk 0:01:38.7]} 20... Ne6 {[%clk 0:01:40.8]}
21. Nde2 {[%clk 0:01:31.6]} 21... Ndc5 {[%clk 0:01:15.6]} 22. Red1 {[%clk
0:01:28.5]} 22... Bf8 {[%clk 0:00:45.7]} 23. Bh4 {[%clk 0:01:08.3]} 23... Bg7
{[%clk 0:00:43]} 24. f5 {[%clk 0:01:02.8]} 24... Nf8 {[%clk 0:00:21.9]} 25. Be1
{[%clk 0:01:00.4]} 25... Qb6 {[%clk 0:00:17.1]} 26. Nf4 {[%clk 0:01:00.4]} 26...
Be5 {[%clk 0:00:16]} 27. Nce2 {[%clk 0:00:48.5]} 27... Qc7 {[%clk 0:00:14.8]}
28. Bc3 {[%clk 0:00:45.1]} 28... Qe7 {[%clk 0:00:13.9]} 29. Re1 {[%clk
0:00:40.2]} 29... Qh4 {[%clk 0:00:13.2]} 30. Bxe5 {[%clk 0:00:38.4]} 30... dxe5
{[%clk 0:00:14.1]} 31. Nd3 {[%clk 0:00:34.7]} 31... Nfd7 {[%clk 0:00:11.6]} 32.
Rbd1 {[%clk 0:00:25.6]} 32... Nxe4 {[%clk 0:00:10.7]} 33. fxg6 {[%clk
0:00:21.5]} 33... fxg6 {[%clk 0:00:08.1]} 34. c5 {[%clk 0:00:18.7]} 34... Ndf6
{[%clk 0:00:07.4]} 35. Kg1 {[%clk 0:00:15.9]} 35... Bf5 {[%clk 0:00:05.4]} 36.
Qc4+ {[%clk 0:00:13.8]} 36... Kg7 {[%clk 0:00:05.1]} 37. Nf2 {[%clk 0:00:11.9]}
37... Qxf2+ {[%clk 0:00:04.5]} 38. Kh2 {[%clk 0:00:09.1]} 38... Qh4 {[%clk
0:00:03.1]} 39. Rf1 {[%clk 0:00:08.8]} 39... Rad8 {[%clk 0:00:02.2]} 40. b4
{[%clk 0:00:05.8]} 40... Rxd1 {[%clk 0:00:01.4]} 41. Rxd1 {[%clk 0:00:06.7]} 1-0

[Event "Late-Titled-Tuesday-Blitz-August-29-2023"]
[Site "Chess.com"]
[Date "2023.08.29"]
[Round "7"]
[White "Goryachkina"]
[Black "Zhigalko_Sergei"]
[Result "0-1"]
[WhiteElo "2639"]
[BlackElo "2921"]
[TimeControl "180+1"]
[EndTime "15:16:38 PDT"]
[Termination "Zhigalko_Sergei won on time"]

1. e4 {[%clk 0:02:59.8]} 1... c5 {[%clk 0:02:59.9]} 2. Nf3 {[%clk 0:03:00]} 2...
Nc6 {[%clk 0:03:00.4]} 3. Bb5 {[%clk 0:03:00.1]} 3... Nf6 {[%clk 0:03:00.7]} 4.
Nc3 {[%clk 0:02:55.4]} 4... Qc7 {[%clk 0:03:00.6]} 5. O-O {[%clk 0:02:52.8]}
5... Nd4 {[%clk 0:03:01]} 6. Re1 {[%clk 0:02:51.2]} 6... a6 {[%clk 0:03:01.2]}
7. Bf1 {[%clk 0:02:50.1]} 7... e5 {[%clk 0:03:01.5]} 8. Nd5 {[%clk 0:02:41.8]}
8... Nxd5 {[%clk 0:03:01.3]} 9. exd5 {[%clk 0:02:42.1]} 9... d6 {[%clk 0:03:02]}
10. c3 {[%clk 0:02:40.2]} 10... Nxf3+ {[%clk 0:03:02]} 11. Qxf3 {[%clk
0:02:40.1]} 11... Be7 {[%clk 0:03:01.9]} 12. d4 {[%clk 0:02:31.4]} 12... O-O
{[%clk 0:03:02]} 13. dxe5 {[%clk 0:02:21.2]} 13... dxe5 {[%clk 0:03:01.5]} 14.
Qg3 {[%clk 0:02:21.3]} 14... Bd6 {[%clk 0:03:00.8]} 15. Qh4 {[%clk 0:02:05.3]}
15... Bf5 {[%clk 0:02:40.1]} 16. Be3 {[%clk 0:01:55]} 16... Rae8 {[%clk
0:02:36.2]} 17. b4 {[%clk 0:01:46.6]} 17... h6 {[%clk 0:02:26.2]} 18. bxc5
{[%clk 0:01:36.9]} 18... Bxc5 {[%clk 0:02:25.7]} 19. Rad1 {[%clk 0:01:36.3]}
19... Bd6 {[%clk 0:02:21.2]} 20. c4 {[%clk 0:01:33.4]} 20... b6 {[%clk
0:02:14.4]} 21. Rc1 {[%clk 0:01:09.7]} 21... Ba3 {[%clk 0:01:59.4]} 22. c5
{[%clk 0:00:43.6]} 22... bxc5 {[%clk 0:01:24.6]} 23. Rc4 {[%clk 0:00:35.9]}
23... Qa5 {[%clk 0:00:57.7]} 24. Rd1 {[%clk 0:00:31.2]} 24... Bb4 {[%clk
0:00:58]} 25. Bxh6 {[%clk 0:00:24.8]} 25... gxh6 {[%clk 0:00:41.9]} 26. Qxh6
{[%clk 0:00:24.3]} 26... e4 {[%clk 0:00:38]} 27. d6 {[%clk 0:00:18.2]} 27... Re6
{[%clk 0:00:16.2]} 28. Qg5+ {[%clk 0:00:14.6]} 28... Bg6 {[%clk 0:00:16.7]} 29.
h4 {[%clk 0:00:09.8]} 29... Qd8 {[%clk 0:00:16.8]} 30. Qg3 {[%clk 0:00:09.5]}
30... Kh7 {[%clk 0:00:10.8]} 31. a3 {[%clk 0:00:09.8]} 31... Ba5 {[%clk
0:00:05.8]} 32. h5 {[%clk 0:00:10.2]} 32... Bxh5 {[%clk 0:00:04.3]} 33. Rd5
{[%clk 0:00:08.8]} 33... Bg6 {[%clk 0:00:04]} 34. Rcxc5 {[%clk 0:00:08.7]} 34...
Bb6 {[%clk 0:00:04.5]} 35. Rh5+ {[%clk 0:00:01]} 35... Kg7 {[%clk 0:00:04.7]}
36. Rcd5 {[%clk 0:00:01.3]} 36... e3 {[%clk 0:00:05.1]} 0-1